fUST/lending_fUST_20250621
["ID","MTS","AMOUNT","RATE_DAILY","PERIOD"]
[366790891,1750457439324,-253.68,0.0002192,10]
[366790892,1750457439334,-438.75,0.0002192,10]
[366790893,1750457439345,-365.62,0.0002192,10]
[366790894,1750457439354,-3000.0,0.0002193,2]
[366790895,1750457439364,-3000.0,0.0002194,2]
[366790896,1750457439373,-3000.0,0.0002195,2]
[366790897,1750457439383,-4094.254002,0.0002196,2]
[366790898,1750457439393,-264.66609239,0.00021973,2]
[366790899,1750457439403,-500.0,0.00021973,2]
[366790900,1750457439414,-500.0,0.00021973,2]
[366790901,1750457439423,-500.0,0.00021973,2]
[366790902,1750457439434,-497.48033274,0.00021973,2]
[366790903,1750457439444,-500.0,0.00021973,2]
[366790904,1750457439454,-500.0,0.00021973,2]
[366790905,1750457439464,-500.0,0.00021973,2]
[366790906,1750457439474,-265.73935326,0.00021973,2]
[366790907,1750457439484,-235.46118948,0.00021973,2]
[366790908,1750457439495,-500.0,0.00021973,2]
[366790909,1750457439506,-318.25524752,0.00021973,2]
[366790910,1750457439515,-500.0,0.00021973,2]
[366790911,1750457439525,-154.21669054,0.00021973,2]
[366790912,1750457439536,-500.0,0.00021973,2]
[366790913,1750457439548,-500.0,0.00021973,2]
[366790914,1750457439559,-256.5883004,0.00021973,2]
[366790915,1750457439569,-500.0,0.00021973,2]
[366790916,1750457439579,-1006.887702,0.00022038,6]
[366790917,1750457439590,-197.26592063,0.00022091,2]
[366790918,1750457439600,-500.0,0.00022144,2]
[366790919,1750457439611,-1006.887702,0.00022176,6]
[366790920,1750457439621,-427.88930111,0.00022191,2]
[366790922,1750457439632,-460.0,0.00022191,2]
[366790924,1750457439642,-380.0,0.00022191,2]
[366790926,1750457439651,-602.72417315,0.00022191,2]
[366790928,1750457439666,-460.0,0.00022191,2]
[366790930,1750457439677,-410.0,0.00022191,2]
[366790932,1750457439687,-460.0,0.00022191,2]
[366790934,1750457439697,-460.0,0.00022191,2]
[366790936,1750457439707,-460.0,0.00022191,2]
[366790938,1750457439717,-460.0,0.00022191,2]
[366790940,1750457439730,-460.0,0.00022191,2]
[366790943,1750457439745,-500.64,0.00022191,2]
[366790945,1750457439761,-400.0,0.00022191,2]
[366790948,1750457439775,-460.0,0.00022191,2]
[366790951,1750457439789,-460.0,0.00022191,2]
[366790955,1750457439803,-460.0,0.00022191,2]
[366790957,1750457439815,-460.0,0.00022191,2]
[366790959,1750457439826,-460.0,0.00022191,2]
[366790961,1750457439837,-460.0,0.00022191,2]
[366790964,1750457439851,-460.0,0.00022191,2]
[366790967,1750457439864,-460.0,0.00022191,2]
[366790970,1750457439877,-460.0,0.00022191,2]
[366790973,1750457439889,-460.0,0.00022191,2]
[366790978,1750457439902,-460.0,0.00022191,2]
[366790981,1750457439916,-460.0,0.00022191,2]
[366790984,1750457439928,-460.0,0.00022191,2]
[366790987,1750457439940,-460.0,0.00022191,2]
[366790992,1750457439952,-1235.0,0.00022191,2]
[366790995,1750457439964,-460.0,0.00022191,2]
[366790998,1750457439976,-460.0,0.00022191,2]
[366791001,1750457439991,-460.0,0.00022191,2]
[366791005,1750457440003,-460.0,0.00022191,2]
[366791008,1750457440017,-460.0,0.00022191,2]
[366791010,1750457440029,-931.86,0.00022191,2]
[366791012,1750457440041,-460.0,0.00022191,2]
[366791014,1750457440053,-460.0,0.00022191,2]
[366791016,1750457440065,-659.77,0.00022191,2]
[366791019,1750457440079,-864.3,0.00022191,2]
[366791020,1750457440090,-460.0,0.00022191,2]
[366791021,1750457440102,-460.0,0.00022191,2]
[366791022,1750457440115,-460.0,0.00022191,2]
[366791023,1750457440129,-460.0,0.00022191,2]
[366791024,1750457440143,-460.0,0.00022191,2]
[366791025,1750457440156,-460.0,0.00022191,2]
[366791026,1750457440168,-468.74,0.00022191,2]
[366791027,1750457440180,-500.0,0.00022191,2]
[366791028,1750457440192,-460.0,0.00022191,2]
[366791029,1750457440203,-670.04,0.00022191,2]
[366791030,1750457440214,-559.51,0.00022191,2]
[366791031,1750457440225,-460.0,0.00022191,2]
[366791032,1750457440238,-460.0,0.00022191,2]
[366791033,1750457440250,-460.0,0.00022191,2]
[366791034,1750457440261,-500.0,0.00022282,2]
[366791035,1750457440274,-1006.887702,0.00022314,7]
[366791036,1750457440285,-500.0,0.00022324,2]
[366791037,1750457440298,-500.0,0.00022324,2]
[366791038,1750457440310,-500.0,0.00022324,2]
[366791039,1750457440323,-500.0,0.00022335,2]
[366791040,1750457440335,-191.0,0.00022426,2]
[366791041,1750457440347,-500.0,0.00022451,8]
[366791042,1750457440361,-1006.887702,0.00022452,7]
[366791043,1750457440374,-500.0,0.00022465,2]
[366791044,1750457440387,-460.0,0.00022465,2]
[366791045,1750457440400,-460.0,0.00022465,2]
[366791046,1750457440415,-507.69,0.00022465,2]
[366791047,1750457440428,-460.0,0.00022465,2]
[366791048,1750457440439,-460.0,0.00022465,2]
[366791049,1750457440449,-460.0,0.00022465,2]
[366791050,1750457440460,-460.0,0.00022465,2]
[366791051,1750457440472,-460.0,0.00022465,2]
[366791052,1750457440484,-460.0,0.00022465,2]
[366791053,1750457440496,-460.0,0.00022465,2]
[366791054,1750457440508,-460.0,0.00022465,2]
[366791055,1750457440520,-485.8,0.00022465,2]
[366791056,1750457440533,-460.0,0.00022465,2]
[366791057,1750457440547,-460.0,0.00022465,2]
[366791058,1750457440559,-567.08031143,0.00022465,2]
[366791059,1750457440572,-460.0,0.00022465,2]
[366791060,1750457440584,-1235.0,0.00022465,2]
[366791061,1750457440595,-460.0,0.00022465,2]
[366791063,1750457440606,-460.0,0.00022465,2]
[366791065,1750457440618,-460.0,0.00022465,2]
[366791067,1750457440629,-460.0,0.00022465,2]
[366791068,1750457440640,-931.86,0.00022465,2]
[366791070,1750457440652,-460.0,0.00022465,2]
[366791071,1750457440668,-460.0,0.00022465,2]
[366791072,1750457440679,-659.77,0.00022465,2]
[366791073,1750457440691,-864.3,0.00022465,2]
[366791074,1750457440703,-460.0,0.00022465,2]
[366791075,1750457440713,-460.0,0.00022465,2]
[366791076,1750457440724,-460.0,0.00022465,2]
[366791077,1750457440734,-460.0,0.00022465,2]
[366791078,1750457440747,-468.74,0.00022465,2]
[366791079,1750457440758,-500.0,0.00022465,2]
[366791080,1750457440770,-460.0,0.00022465,2]
[366791081,1750457440782,-670.04,0.00022465,2]
[366791082,1750457440794,-559.51,0.00022465,2]
[366791083,1750457440805,-460.0,0.00022465,2]
[366791084,1750457440818,-460.0,0.00022465,2]
[366791085,1750457440832,-460.0,0.00022465,2]
[366791086,1750457440845,-571.91904621,0.00022521,2]
[366791087,1750457440856,-207.4,0.00022576,2]
[366791088,1750457440868,-5000.0,0.00022576,2]
[366791089,1750457440880,-500.0,0.00022576,2]
[366791090,1750457440893,-500.0,0.00022576,2]
[366791091,1750457440904,-500.0,0.00022576,2]
[366791092,1750457440916,-500.0,0.00022576,2]
[366791093,1750457440927,-500.0,0.00022576,2]
[366791094,1750457440939,-500.0,0.00022576,2]
[366791095,1750457440950,-500.0,0.00022576,2]
[366791096,1750457440962,-500.0,0.00022576,2]
[366791097,1750457440973,-500.0,0.00022576,2]
[366791098,1750457440985,-500.0,0.00022576,2]
[366791099,1750457440996,-500.0,0.00022576,2]
[366791100,1750457441006,-500.0,0.00022576,2]
[366791101,1750457441017,-500.0,0.00022576,2]
[366791102,1750457441028,-500.0,0.00022576,2]
[366791103,1750457441039,-500.0,0.00022576,2]
[366791104,1750457441051,-500.0,0.00022576,2]
[366791105,1750457441062,-500.0,0.00022576,2]
[366791106,1750457441073,-500.0,0.00022576,2]
[366791107,1750457441084,-500.0,0.00022576,2]
[366791108,1750457441095,-500.0,0.00022576,2]
[366791109,1750457441107,-1006.887702,0.0002259,7]
[366791110,1750457441118,-420.0,0.00022594,2]
[366791111,1750457441129,-191.0,0.0002262,2]
[366791112,1750457441140,-480.0,0.00022702,2]
[366791113,1750457441152,-1006.887702,0.00022728,7]
[366791114,1750457441164,-460.0,0.00022739,2]
[366791115,1750457441175,-460.0,0.00022739,2]
[366791116,1750457441186,-460.0,0.00022739,2]
[366791117,1750457441198,-460.0,0.00022739,2]
[366791118,1750457441209,-460.0,0.00022739,2]
[366791119,1750457441220,-460.0,0.00022739,2]
[366791120,1750457441232,-460.0,0.00022739,2]
[366791121,1750457441244,-460.0,0.00022739,2]
[366791122,1750457441255,-460.0,0.00022739,2]
[366791123,1750457441410,-460.0,0.00022739,2]
[366791124,1750457441421,-460.0,0.00022739,2]
[366791125,1750457441431,-1235.0,0.00022739,2]
[366791126,1750457441440,-460.0,0.00022739,2]
[366791127,1750457441450,-460.0,0.00022739,2]
[366791128,1750457441460,-460.0,0.00022739,2]
[366791129,1750457441470,-460.0,0.00022739,2]
[366791130,1750457441480,-931.86,0.00022739,2]
[366791131,1750457441491,-460.0,0.00022739,2]
[366791132,1750457441500,-460.0,0.00022739,2]
[366791133,1750457441510,-659.77,0.00022739,2]
[366791134,1750457441520,-864.3,0.00022739,2]
[366791135,1750457441531,-460.0,0.00022739,2]
[366791136,1750457441541,-460.0,0.00022739,2]
[366791137,1750457441550,-460.0,0.00022739,2]
[366791138,1750457441560,-468.74,0.00022739,2]
[366791139,1750457441570,-500.0,0.00022739,2]
[366791140,1750457441579,-460.0,0.00022739,2]
[366791141,1750457441590,-670.04,0.00022739,2]
[366791142,1750457441599,-559.51,0.00022739,2]
[366791143,1750457441608,-460.0,0.00022739,2]
[366791144,1750457441618,-460.0,0.00022739,2]
[366791145,1750457441628,-460.0,0.00022739,2]
[366791146,1750457441637,-191.0,0.00022749,2]
[366791147,1750457441647,-1006.887702,0.00022866,8]
[366791148,1750457441656,-150.0,0.00022866,2]
[366791149,1750457441669,-150.0,0.00022866,2]
[366791150,1750457441679,-406.0,0.00022866,2]
[366791151,1750457441688,-1000.0,0.00022871,2]
[366791152,1750457441697,-191.0,0.00022878,2]
[366791153,1750457441707,-453.2312045,0.00022923,2]
[366791154,1750457441717,-197.26592061,0.00022996,2]
[366791155,1750457441727,-191.0,0.00023,2]
[366791156,1750457441738,-1006.887702,0.00023003,8]
[366791157,1750457441747,-543.21913824,0.00023013,2]
[366791158,1750457441756,-293.51,0.00023013,2]
[366791159,1750457441766,-460.0,0.00023013,2]
[366791160,1750457441775,-460.0,0.00023013,2]
[366791161,1750457441786,-460.0,0.00023013,2]
[366791162,1750457441795,-460.0,0.00023013,2]
[366791163,1750457441805,-460.0,0.00023013,2]
[366791164,1750457441815,-157.93,0.00023013,2]
[366791165,1750457441824,-460.0,0.00023013,2]
[366791166,1750457441834,-460.0,0.00023013,2]
[366791167,1750457441843,-460.0,0.00023013,2]
[366791168,1750457441853,-460.0,0.00023013,2]
[366791169,1750457441862,-1235.0,0.00023013,2]
[366791170,1750457441871,-460.0,0.00023013,2]
[366791171,1750457441881,-460.0,0.00023013,2]
[366791172,1750457441890,-383.02443309,0.00023013,2]
[366791173,1750457441900,-460.0,0.00023013,2]
[366791174,1750457441910,-931.86,0.00023013,2]
[366791175,1750457441920,-460.0,0.00023013,2]
[366791176,1750457441929,-460.0,0.00023013,2]
[366791177,1750457441939,-659.77,0.00023013,2]
[366791178,1750457441948,-864.3,0.00023013,2]
[366791179,1750457441959,-460.0,0.00023013,2]
[366791180,1750457441969,-460.0,0.00023013,2]
[366791181,1750457441978,-460.0,0.00023013,2]
[366791182,1750457441989,-468.74,0.00023013,2]
[366791183,1750457441999,-504.23576132,0.00023013,2]
[366791184,1750457442009,-460.0,0.00023013,2]
[366791185,1750457442019,-670.04,0.00023013,2]
[366791186,1750457442029,-559.51,0.00023013,2]
[366791187,1750457442038,-460.0,0.00023013,2]
[366791188,1750457442048,-460.0,0.00023013,2]
[366791189,1750457442058,-4717.46,0.00023105,2]
[366791190,1750457442068,-5000.0,0.00023124,2]
[366791191,1750457442078,-1006.887702,0.00023141,8]
[366791192,1750457442087,-500.0,0.00023201,2]
[366791193,1750457442097,-460.0,0.00023207,2]
[366791194,1750457442106,-191.0,0.00023249,2]
[366791195,1750457442116,-191.0,0.00023251,2]
[366791196,1750457442126,-500.0,0.00023262,2]
[366791197,1750457442136,-160.0,0.00023273,2]
[366791198,1750457442145,-1006.887702,0.00023279,8]
[366791199,1750457442155,-460.0,0.00023287,2]
[366791200,1750457442165,-460.0,0.00023287,2]
[366791201,1750457442174,-460.0,0.00023287,2]
[366791202,1750457442183,-460.0,0.00023287,2]
[366791203,1750457442193,-460.0,0.00023287,2]
[366791204,1750457442203,-460.0,0.00023287,2]
[366791205,1750457442213,-460.0,0.00023287,2]
[366791206,1750457442222,-460.0,0.00023287,2]
[366791207,1750457442232,-235.94504447,0.00023287,2]
[366791208,1750457442241,-1235.0,0.00023287,2]
[366791209,1750457442251,-460.0,0.00023287,2]
[366791210,1750457442261,-380.73313665,0.00023287,2]
[366791211,1750457442271,-454.06,0.00023287,2]
[366791212,1750457442280,-931.86,0.00023287,2]
[366791213,1750457442290,-460.0,0.00023287,2]
[366791214,1750457442300,-460.0,0.00023287,2]
[366791215,1750457442310,-659.77,0.00023287,2]
[366791216,1750457442320,-864.3,0.00023287,2]
[366791217,1750457442330,-460.0,0.00023287,2]
[366791218,1750457442340,-460.0,0.00023287,2]
[366791219,1750457442349,-460.0,0.00023287,2]
[366791220,1750457442359,-468.74,0.00023287,2]
[366791221,1750457442369,-460.0,0.00023287,2]
[366791222,1750457442378,-670.04,0.00023287,2]
[366791223,1750457442389,-559.51,0.00023287,2]
[366791224,1750457442399,-291.77050901,0.00023287,2]
[366791225,1750457442409,-411.751788,0.00023308,2]
[366791226,1750457442419,-1148.4306086,0.00023397,2]
[366791227,1750457442428,-354.3008366,0.00023397,2]
[366791228,1750457442438,-574.2153043,0.00023397,2]
[366791229,1750457442448,-159.0517633,0.00023397,2]
[366791230,1750457442458,-354.3008366,0.00023397,2]
[366791231,1750457442467,-346.9248725,0.00023397,2]
[366791233,1750457442477,-306.0,0.00023397,2]
[366791234,1750457442487,-159.0517633,0.00023397,2]
[366791236,1750457442497,-158.8689442,0.00023397,2]
[366791238,1750457442507,-1006.887702,0.00023417,9]
[366791240,1750457442516,-1500.0,0.00023419,2]
[366791242,1750457442526,-191.0,0.0002345,2]
[366791244,1750457442536,-421.88915428,0.00023481,2]
[366791245,1750457442545,-941.849298,0.0002352,4]
[366791247,1750457442554,-1006.887702,0.00023555,9]
[366791248,1750457442564,-460.0,0.00023561,2]
[366791249,1750457442573,-460.0,0.00023561,2]
[366791250,1750457442583,-460.0,0.00023561,2]
[366791251,1750457442592,-460.0,0.00023561,2]
[366791252,1750457442602,-460.0,0.00023561,2]
[366791253,1750457442612,-460.0,0.00023561,2]
[366791254,1750457442621,-460.0,0.00023561,2]
[366791256,1750457442631,-460.0,0.00023561,2]
[366791257,1750457442641,-1235.0,0.00023561,2]
[366791259,1750457442650,-460.0,0.00023561,2]
[366791260,1750457442660,-931.86,0.00023561,2]
[366791261,1750457442673,-460.0,0.00023561,2]
[366791262,1750457442683,-460.0,0.00023561,2]
[366791263,1750457442693,-659.77,0.00023561,2]
[366791264,1750457442703,-864.3,0.00023561,2]
[366791265,1750457442713,-460.0,0.00023561,2]
[366791266,1750457442723,-460.0,0.00023561,2]
[366791267,1750457442734,-460.0,0.00023561,2]
[366791268,1750457442746,-468.74,0.00023561,2]
[366791269,1750457442756,-460.0,0.00023561,2]
[366791270,1750457442765,-670.04,0.00023561,2]
[366791271,1750457442776,-559.51,0.00023561,2]
[366791272,1750457442786,-500.0,0.00023607,2]
[366791273,1750457442795,-191.0,0.00023629,2]
[366791274,1750457442806,-5000.0,0.00023672,2]
[366791275,1750457442816,-500.0,0.00023674,2]
[366791276,1750457442826,-1006.887702,0.00023693,9]
[366791277,1750457442836,-800.0,0.00023789,2]
[366791278,1750457442846,-319.0,0.000238,2]
[366791279,1750457442856,-500.0,0.0002381,2]
[366791280,1750457442866,-411.751788,0.00023831,2]
[366791281,1750457442875,-1006.887702,0.00023831,10]
[366791282,1750457442885,-500.0,0.00023832,2]
[366791283,1750457442895,-460.0,0.00023835,2]
[366791284,1750457442905,-460.0,0.00023835,2]
[366791285,1750457442916,-460.0,0.00023835,2]
[366791286,1750457442925,-460.0,0.00023835,2]
[366791287,1750457442935,-460.0,0.00023835,2]
[366791288,1750457442947,-460.0,0.00023835,2]
[366791289,1750457442957,-297.1743431,0.00023835,2]
[366791290,1750457442967,-460.0,0.00023835,2]
[366791291,1750457442977,-1235.0,0.00023835,2]
[366791292,1750457442987,-460.0,0.00023835,2]
[366791293,1750457442997,-931.86,0.00023835,2]
[366791294,1750457443007,-460.0,0.00023835,2]
[366791295,1750457443017,-557.69,0.00023835,2]
[366791296,1750457443027,-659.77,0.00023835,2]
[366791297,1750457443037,-864.3,0.00023835,2]
[366791298,1750457443047,-460.0,0.00023835,2]
[366791299,1750457443056,-275.2752763,0.00023835,2]
[366791300,1750457443067,-512.51564021,0.00023835,2]
[366791301,1750457443076,-468.74,0.00023835,2]
[366791302,1750457443086,-460.0,0.00023835,2]
[366791303,1750457443096,-670.04,0.00023835,2]
[366791304,1750457443106,-559.51,0.00023835,2]
[366791305,1750457443116,-26483.77887713,0.00023873,2]
[366791306,1750457443125,-500.0,0.00023895,2]
[366791307,1750457443135,-197.26592061,0.000239,2]
[366791308,1750457443145,-375.26577017,0.00023924,2]
[366791309,1750457443154,-479.42593395,0.00023942,2]
[366791310,1750457443166,-215.0738,0.00023945,2]
[366791311,1750457443176,-500.0,0.00023961,2]
[366791312,1750457443188,-1006.887702,0.00023969,10]
[366791313,1750457443198,-500.0,0.00023973,2]
[366791314,1750457443208,-500.49256119,0.00023973,2]
[366791315,1750457443219,-500.0,0.00023973,2]
[366791316,1750457443228,-500.0,0.00023973,2]
[366791317,1750457443239,-503.32563037,0.00023973,2]
[366791318,1750457443249,-152.16174315,0.00023973,2]
[366791319,1750457443259,-509.41600529,0.00023973,2]
[366791320,1750457443269,-502.00418088,0.00023973,2]
[366791321,1750457443279,-264.034459,0.00023973,2]
[366791322,1750457443288,-500.0,0.00023973,2]
[366791323,1750457443298,-500.0,0.00023973,2]
[366791324,1750457443309,-500.0,0.00023973,2]
[366791325,1750457443319,-159.67165378,0.00023973,2]
[366791326,1750457443329,-500.0,0.00023973,2]
[366791327,1750457443338,-160.79089907,0.00023973,2]
[366791328,1750457443348,-426.59032697,0.00023973,2]
[366791329,1750457443359,-500.0,0.00023973,2]
[366791330,1750457443368,-500.0,0.00023973,2]
[366791331,1750457443378,-500.0,0.00023973,2]
[366791332,1750457443388,-500.0,0.00023973,2]
[366791333,1750457443398,-500.0,0.00023973,2]
[366791334,1750457443408,-500.0,0.00023973,2]
[366791335,1750457443417,-500.0,0.00023973,2]
[366791336,1750457443428,-500.0,0.00023973,2]
[366791337,1750457443437,-500.0,0.00023973,2]
[366791338,1750457443447,-600.0,0.00023973,2]
[366791339,1750457443458,-500.0,0.00023973,2]
[366791340,1750457443467,-500.0,0.00023973,2]
[366791341,1750457443477,-500.0,0.00023973,2]
[366791342,1750457443487,-500.0,0.00023973,2]
[366791343,1750457443496,-500.0,0.00023973,2]
[366791344,1750457443506,-505.91820719,0.00023973,2]
[366791345,1750457443516,-500.0,0.00023973,2]
[366791346,1750457443526,-500.0,0.00023973,2]
[366791347,1750457443536,-500.0,0.00023973,2]
[366791348,1750457443547,-540.6525878,0.00023973,2]
[366791349,1750457443556,-500.0,0.00023973,2]
[366791350,1750457443566,-500.0,0.00023973,2]
[366791351,1750457443576,-500.0,0.00023973,2]
[366791352,1750457443586,-500.68593713,0.00023973,2]
[366791353,1750457443595,-500.0,0.00023973,2]
[366791354,1750457443605,-517.89964897,0.00023973,2]
[366791355,1750457443616,-500.0,0.00023973,2]
[366791356,1750457443626,-500.0,0.00023973,2]
[366791357,1750457443636,-500.0,0.00023973,2]
[366791358,1750457443646,-500.0,0.00023973,2]
[366791359,1750457443656,-500.0,0.00023973,2]
[366791360,1750457443668,-500.0,0.00023973,2]
[366791361,1750457443678,-200.0,0.00023999,30]
[366791362,1750457443688,-43834.0164643,0.00024,30]
[366791363,1750457443698,-160.0,0.00024,7]
[366791364,1750457443708,-160.0,0.00024,10]
[366791365,1750457443718,-150.0,0.00024,2]
[366791366,1750457443727,-224545.07195967,0.00024,2]
[366791367,1750457443739,-160.0,0.00024,7]
[366791368,1750457443748,-500.0,0.00024,2]
[366791369,1750457443757,-118140.41589442,0.00024,2]
[366791370,1750457443768,-3104.96,0.00024,7]
[366791371,1750457443778,-151.0,0.00024,7]
[366791372,1750457443787,-60257.66,0.00024,2]
[366791373,1750457443797,-151.0,0.00024,7]
[366791374,1750457443806,-207.859674,0.00024,7]
[366791375,1750457443816,-151.0,0.00024,7]
[366791376,1750457443826,-151.0,0.00024,7]
[366791377,1750457443836,-151.0,0.00024,7]
[366791378,1750457443846,-173.094156,0.00024,7]
[366791379,1750457443856,-173.094156,0.00024,7]
[366791380,1750457443866,-151.0,0.00024,7]
[366791381,1750457443875,-151.0,0.00024,7]
[366791382,1750457443885,-151.0,0.00024,7]
[366791383,1750457443896,-151.0,0.00024,7]
[366791384,1750457443906,-151.0,0.00024,7]
[366791385,1750457443917,-151.0,0.00024,7]
[366791386,1750457443927,-266.327186,0.00024,7]
[366791387,1750457443938,-151.0,0.00024,2]
[366791388,1750457443947,-151.0,0.00024,2]
[366791389,1750457443958,-254.360293,0.00024,2]
[366791390,1750457443967,-151.0,0.00024,7]
[366791391,1750457443977,-151.0,0.00024,7]
[366791392,1750457443986,-151.0,0.00024,7]
[366791393,1750457443996,-992.82,0.00024,7]
[366791394,1750457444005,-151.0,0.00024,7]
[366791395,1750457444015,-162.134399,0.00024,7]
[366791396,1750457444026,-168.214258,0.00024,7]
[366791397,1750457444036,-168.214258,0.00024,7]
[366791398,1750457444046,-168.214258,0.00024,7]
[366791399,1750457444056,-168.214258,0.00024,7]
[366791400,1750457444065,-200.0,0.00024,30]
[366791401,1750457444075,-200.0,0.00024,30]
[366791402,1750457444085,-200.0,0.00024,30]
[366791403,1750457444094,-200.0,0.00024,30]
[366791404,1750457444104,-200.0,0.00024,30]
[366791405,1750457444114,-200.0,0.00024,30]
[366791406,1750457444123,-1563.434122,0.00024,2]
[366791407,1750457444133,-1300.0,0.00024,5]
[366791408,1750457444143,-151.0,0.00024,7]
[366791409,1750457444152,-836.27303475,0.00024,7]
[366791410,1750457444162,-160.0,0.00024,7]
[366791411,1750457444171,-523.92420239,0.00024,30]
[366791412,1750457444180,-523.92420239,0.00024,3]
[366791413,1750457444190,-523.92420239,0.00024,3]
[366791414,1750457444200,-12546.90244252,0.00024,30]
[366791415,1750457444209,-151.0,0.00024,7]
[366791416,1750457444219,-424.85694595,0.00024,7]
[366791417,1750457444229,-168.0,0.00024009,2]
[366791418,1750457444238,-500.0,0.00024046,2]
[366791419,1750457444248,-500.0,0.00024092,2]
[366791420,1750457444257,-1006.887702,0.00024107,10]
[366791421,1750457444267,-368.21,0.00024109,2]
[366791422,1750457444277,-460.0,0.00024109,2]
[366791423,1750457444286,-460.0,0.00024109,2]
[366791424,1750457444296,-110.89439782,0.00024109,2]
[366791425,1750457444324,-239.91846251,0.00021917,2]
[366791426,1750457444422,-304.68,0.00022455,10]
[366791427,1750457444443,-440.00987413,0.00024109,2]
[366791428,1750457444454,-460.0,0.00024109,2]
[366791429,1750457444464,-291.10003097,0.00024109,2]
[366791451,1750457622001,200.0,0.00022191,30]
[366791452,1750457622249,200.0,0.00022465,30]
[366791453,1750457622505,200.0,0.00022739,30]
[366791459,1750457851382,181.717795,0.00013699,2]
[366791541,1750458632307,-181.717795,0.00020187,2]
[366791595,1750458632821,-288.250493,0.00020838,2]
[366791597,1750458632832,-95.24169534,0.00021,2]
[366791600,1750458632855,-173.60953934,0.00021,2]
[366791602,1750458632865,-1492.63398559,0.00021,2]
[366791604,1750458632875,-201.09318793,0.00021,2]
[366791607,1750458632885,-160.0,0.00021067,2]
[366791609,1750458632894,-160.0,0.00021414,2]
[366791610,1750458632904,-171.271,0.0002142,2]
[366791612,1750458632914,-300.0,0.0002142,2]
[366791614,1750458632923,-16389.82145367,0.00021421,2]
[366791619,1750458632953,-8510.17854633,0.00021421,2]
[366791621,1750458632963,-165.116567,0.00021586,2]
[366791623,1750458632973,-235.20302405,0.00021817,2]
[366791625,1750458632982,-836.27303475,0.00021871,2]
[366791626,1750458632992,-160.0,0.00021871,2]
[366791628,1750458633001,-424.85694595,0.00021871,2]
[366791630,1750458633011,-441.12421178,0.00021917,2]
[366791632,1750458633020,-200.0,0.00021917,2]
[366791634,1750458633029,-500.0,0.00021917,2]
[366791636,1750458633040,-460.0,0.00021917,2]
[366791638,1750458633050,-460.0,0.00021917,2]
[366791639,1750458633060,-460.0,0.00021917,2]
[366791641,1750458633070,-460.0,0.00021917,2]
[366791642,1750458633080,-460.0,0.00021917,2]
[366791643,1750458633090,-460.0,0.00021917,2]
[366791644,1750458633101,-460.0,0.00021917,2]
[366791645,1750458633111,-460.0,0.00021917,2]
[366791646,1750458633121,-460.0,0.00021917,2]
[366791647,1750458633136,-595.37,0.00021917,2]
[366791648,1750458633146,-460.0,0.00021917,2]
[366791649,1750458633156,-460.0,0.00021917,2]